fUSD/lending_fUSD_20260529
["ID","MTS","AMOUNT","RATE_DAILY","PERIOD"]
[423284428,1780026640000,-4230.0,0.00015,5]
[423284456,1780026640000,-1000.0,0.00015,2]
[423284457,1780026640000,-1000.0,0.00015,2]
[423284465,1780026640000,-1610.93223,0.00015,2]
[423284469,1780026640000,-10000.0,0.0001503,2]
[423284466,1780026640000,-1610.93223,0.00015,2]
[423284472,1780026640000,-634.88,0.00015164,2]
[423284467,1780026640000,-150.0,0.00015,2]
[423284470,1780026640000,-350.0,0.00015057,2]
[423284468,1780026640000,-350.0,0.00015028,2]
[423284473,1780026640000,-2000.0,0.00015177,2]
[423284476,1780026640000,-350.0,0.00015392,2]
[423284471,1780026640000,-900.0,0.00015068,2]
[423284475,1780026640000,-350.0,0.00015391,2]
[423284458,1780026640000,-1000.0,0.00015,2]
[423284474,1780026640000,-306.74,0.000153,2]
[423284479,1780026640000,-500.0,0.000159,2]
[423284480,1780026640000,-1448.19,0.000159,2]
[423284481,1780026640000,-150.0,0.000159,2]
[423284482,1780026640000,-300.0,0.00016,2]
[423284487,1780026640000,-2000.0,0.000162,2]
[423284489,1780026640000,-167.89454848,0.00016367,7]
[423284488,1780026640000,-167.11,0.00016259,2]
[423284483,1780026640000,-151.0,0.00016,4]
[423284478,1780026640000,-350.0,0.00015495,2]
[423284484,1780026640000,-700.0,0.00016026,2]
[423284486,1780026640000,-965.12,0.00016127,2]
[423284485,1780026640000,-433.0,0.00016039,2]
[423284426,1780026640000,-415.97571317,0.00014999,2]
[423284477,1780026640000,-2000.0,0.000154,2]
[423284455,1780026640000,-1000.0,0.00015,2]
[423284490,1780026640000,-167.89454849,0.00016367,30]
[423284464,1780026640000,-1610.93223,0.00015,2]
[423284429,1780026640000,-2638241.39965536,0.00015,2]
[423284430,1780026640000,-279.26,0.00015,2]
[423284439,1780026640000,-1000.0,0.00015,2]
[423284433,1780026640000,-1000.0,0.00015,2]
[423284438,1780026640000,-1000.0,0.00015,2]
[423284431,1780026640000,-1000.0,0.00015,2]
[423284432,1780026640000,-1000.0,0.00015,2]
[423284436,1780026640000,-1000.0,0.00015,2]
[423284452,1780026640000,-432.54,0.00015,2]
[423284435,1780026640000,-1000.0,0.00015,2]
[423284440,1780026640000,-1000.0,0.00015,2]
[423284443,1780026640000,-2939.18,0.00015,2]
[423284442,1780026640000,-1127.8501286,0.00015,2]
[423284450,1780026640000,-151.79241085,0.00015,2]
[423284434,1780026640000,-1000.0,0.00015,2]
[423284444,1780026640000,-1000.0,0.00015,2]
[423284454,1780026640000,-271.94,0.00015,2]
[423284441,1780026640000,-1000.0,0.00015,2]
[423284453,1780026640000,-668479.513047,0.00015,2]
[423284462,1780026640000,-15317.3710292,0.00015,2]
[423284463,1780026640000,-1541.0,0.00015,2]
[423284459,1780026640000,-1000.0,0.00015,2]
[423284461,1780026640000,-153.0,0.00015,2]
[423284448,1780026640000,-1000.0,0.00015,2]
[423284449,1780026640000,-1005.39,0.00015,2]
[423284447,1780026640000,-1000.0,0.00015,2]
[423284451,1780026640000,-1000.0,0.00015,2]
[423284445,1780026640000,-1000.0,0.00015,2]
[423284446,1780026640000,-1000.0,0.00015,2]
[423284460,1780026640000,-153.0,0.00015,2]
[423284529,1780026641000,-200.0,0.00016841,3]
[423284532,1780026641000,-167.89454848,0.00016888,7]
[423284533,1780026641000,-167.89454849,0.00016888,30]
[423284537,1780026641000,-9999.99,0.00016922,2]
[423284530,1780026641000,-634.88,0.00016848,2]
[423284522,1780026641000,-900.0,0.00016438,2]
[423284526,1780026641000,-2939.18,0.000167,2]
[423284527,1780026641000,-168.09,0.00016712,2]
[423284521,1780026641000,-230.31,0.00016438,2]
[423284524,1780026641000,-5128.21605464,0.000165,2]
[423284519,1780026641000,-152.0,0.00016438,2]
[423284528,1780026641000,-163.35006071,0.00016814,2]
[423284538,1780026641000,-1161.71,0.00016922,2]
[423284541,1780026641000,-5128.21605464,0.000172,2]
[423284536,1780026641000,-5128.21605464,0.000169,2]
[423284531,1780026641000,-2000.0,0.00016863,2]
[423284535,1780026641000,-500.0,0.000169,2]
[423284546,1780026641000,-736.0,0.00017354,2]
[423284544,1780026641000,-1000.0,0.000173,2]
[423284550,1780026641000,-167.89454849,0.00017409,30]
[423284547,1780026641000,-5128.21605464,0.000174,2]
[423284549,1780026641000,-167.89454848,0.00017409,7]
[423284545,1780026641000,-315.0,0.000173,2]
[423284539,1780026641000,-5128.21605464,0.000171,2]
[423284548,1780026641000,-500.0,0.00017402,2]
[423284540,1780026641000,-2258.0,0.000171,2]
[423284525,1780026641000,-5128.21605464,0.000167,2]
[423284534,1780026641000,-500.0,0.00016895,2]
[423284520,1780026641000,-194.33511515,0.00016438,2]
[423284514,1780026641000,-152.0,0.00016438,2]
[423284517,1780026641000,-152.0,0.00016438,2]
[423284543,1780026641000,-309.0,0.000173,2]
[423284491,1780026641000,-500.0,0.00016403,2]
[423284501,1780026641000,-500.0,0.00016438,2]
[423284499,1780026641000,-500.0,0.00016438,2]
[423284497,1780026641000,-323.0,0.00016438,2]
[423284492,1780026641000,-500.0,0.00016437,2]
[423284498,1780026641000,-372.0,0.00016438,2]
[423284500,1780026641000,-500.0,0.00016438,2]
[423284493,1780026641000,-8056.7,0.00016438,2]
[423284496,1780026641000,-740.0,0.00016438,2]
[423284495,1780026641000,-555.0,0.00016438,2]
[423284494,1780026641000,-264.62090357,0.00016438,2]
[423284502,1780026641000,-500.0,0.00016438,2]
[423284503,1780026641000,-500.0,0.00016438,2]
[423284506,1780026641000,-500.0,0.00016438,2]
[423284513,1780026641000,-152.0,0.00016438,2]
[423284508,1780026641000,-501.27069188,0.00016438,2]
[423284511,1780026641000,-152.0,0.00016438,2]
[423284510,1780026641000,-152.0,0.00016438,2]
[423284509,1780026641000,-152.0,0.00016438,2]
[423284507,1780026641000,-500.0,0.00016438,2]
[423284504,1780026641000,-500.0,0.00016438,2]
[423284505,1780026641000,-500.0,0.00016438,2]
[423284512,1780026641000,-152.0,0.00016438,2]
[423284516,1780026641000,-152.0,0.00016438,2]
[423284515,1780026641000,-152.0,0.00016438,2]
[423284518,1780026641000,-152.0,0.00016438,2]
[423284523,1780026641000,-155.53,0.00016438,10]
[423284542,1780026641000,-200.0,0.000173,2]
[423284554,1780026641000,-7018.55,0.00017572,2]
[423284595,1780026641000,-711.47953175,0.00018483,2]
[423284578,1780026641000,-1359.50701632,0.000182,2]
[423284584,1780026641000,-3574.066,0.00018384,2]
[423284586,1780026641000,-1272.0,0.00018384,2]
[423284588,1780026641000,-525.0,0.00018384,2]
[423284591,1780026641000,-1370.28437633,0.000184,2]
[423284592,1780026641000,-1359.50701632,0.000184,2]
[423284594,1780026641000,-500.0,0.00018462,2]
[423284590,1780026641000,-6066.0,0.00018384,2]
[423284589,1780026641000,-932.0,0.00018384,2]
[423284587,1780026641000,-1230.973,0.00018384,2]
[423284593,1780026641000,-8056.7,0.0001841,2]
[423284596,1780026641000,-1370.28437633,0.000185,2]
[423284597,1780026641000,-1359.50701632,0.000185,2]
[423284599,1780026641000,-2000.0,0.00018549,2]
[423284608,1780026641000,-1252.0,0.00018778,2]
[423284609,1780026641000,-163.35006071,0.00018829,2]
[423284602,1780026641000,-150.0,0.00018589,2]
[423284605,1780026641000,-151.0,0.00018589,2]
[423284601,1780026641000,-150.0,0.00018589,2]
[423284603,1780026641000,-150.199,0.00018589,2]
[423284600,1780026641000,-160.825,0.00018589,2]
[423284611,1780026641000,-1359.50701632,0.000189,2]
[423284604,1780026641000,-150.281,0.00018589,2]
[423284610,1780026641000,-1370.28437633,0.000189,2]
[423284606,1780026641000,-1370.28437633,0.000187,2]
[423284551,1780026641000,-568.53506614,0.00017454,2]
[423284607,1780026641000,-1359.50701632,0.000187,2]
[423284583,1780026641000,-300.0,0.00018383,2]
[423284582,1780026641000,-300.0,0.00018383,2]
[423284598,1780026641000,-634.88,0.00018533,2]
[423284579,1780026641000,-20856.66,0.00018356,2]
[423284561,1780026641000,-500.0,0.00017825,2]
[423284556,1780026641000,-5128.21605464,0.000176,2]
[423284552,1780026641000,-8443.99,0.00017572,2]
[423284562,1780026641000,-1071.12,0.0001786,2]
[423284553,1780026641000,-1896.61,0.00017572,2]
[423284557,1780026641000,-5128.21605464,0.000177,2]
[423284559,1780026641000,-272.69,0.000178,2]
[423284560,1780026641000,-323.556846,0.00017808,2]
[423284555,1780026641000,-625.96,0.00017572,2]
[423284575,1780026641000,-2939.18,0.000181,2]
[423284564,1780026641000,-500.0,0.000179,2]
[423284574,1780026641000,-5128.21605464,0.000181,2]
[423284563,1780026641000,-1089.73064737,0.0001789,2]
[423284565,1780026641000,-5128.21605464,0.000179,2]
[423284558,1780026641000,-248.72,0.000178,2]
[423284567,1780026641000,-169.55,0.00017912,2]
[423284581,1780026641000,-666.0,0.00018383,2]
[423284566,1780026641000,-1100.0,0.000179,6]
[423284580,1780026641000,-300.0,0.00018383,2]
[423284585,1780026641000,-928.0,0.00018384,2]
[423284577,1780026641000,-1370.28437633,0.000182,2]
[423284570,1780026641000,-8068.6319756,0.00018,2]
[423284576,1780026641000,-965.12,0.00018143,2]
[423284571,1780026641000,-1370.28437633,0.00018,2]
[423284572,1780026641000,-1359.50701632,0.00018,2]
[423284569,1780026641000,-500.0,0.00017999,2]
[423284568,1780026641000,-500.0,0.00017924,2]
[423284573,1780026641000,-350.0,0.00018,2]
[423284654,1780026642000,-151.0,0.00019178,2]
[423284656,1780026642000,-151.0,0.00019178,2]
[423284637,1780026642000,-151.0,0.00019178,2]
[423284659,1780026642000,-151.0,0.00019178,2]
[423284648,1780026642000,-151.0,0.00019178,2]
[423284647,1780026642000,-151.0,0.00019178,2]
[423284652,1780026642000,-151.0,0.00019178,2]
[423284651,1780026642000,-151.0,0.00019178,2]
[423284641,1780026642000,-151.0,0.00019178,2]
[423284640,1780026642000,-151.0,0.00019178,2]
[423284653,1780026642000,-151.0,0.00019178,2]
[423284649,1780026642000,-151.0,0.00019178,2]
[423284650,1780026642000,-151.0,0.00019178,2]
[423284665,1780026642000,-151.0,0.00019178,2]
[423284658,1780026642000,-151.0,0.00019178,2]
[423284657,1780026642000,-151.0,0.00019178,2]
[423284661,1780026642000,-151.0,0.00019178,2]
[423284671,1780026642000,-151.0,0.00019178,2]
[423284660,1780026642000,-151.0,0.00019178,2]
[423284664,1780026642000,-151.0,0.00019178,2]
[423284662,1780026642000,-151.0,0.00019178,2]
[423284663,1780026642000,-151.0,0.00019178,2]
[423284668,1780026642000,-151.0,0.00019178,2]
[423284669,1780026642000,-151.0,0.00019178,2]
[423284666,1780026642000,-151.0,0.00019178,2]
[423284667,1780026642000,-151.0,0.00019178,2]
[423284638,1780026642000,-151.0,0.00019178,2]
[423284655,1780026642000,-151.0,0.00019178,2]
[423284639,1780026642000,-151.0,0.00019178,2]
[423284613,1780026642000,-2258.71730431,0.00019,2]
[423284646,1780026642000,-151.0,0.00019178,2]
[423284616,1780026642000,-1359.50701632,0.000191,2]
[423284614,1780026642000,-500.0,0.00019016,2]
[423284612,1780026642000,-540.47395843,0.00019,2]
[423284615,1780026642000,-1370.28437633,0.000191,2]
[423284620,1780026642000,-211.67678875,0.00019178,2]
[423284618,1780026642000,-150.0,0.00019178,2]
[423284621,1780026642000,-160.93281423,0.00019178,2]
[423284619,1780026642000,-150.0,0.00019178,2]
[423284617,1780026642000,-150.0,0.00019178,2]
[423284622,1780026642000,-151.0,0.00019178,2]
[423284623,1780026642000,-151.0,0.00019178,2]
[423284625,1780026642000,-151.0,0.00019178,2]
[423284624,1780026642000,-151.0,0.00019178,2]
[423284627,1780026642000,-151.0,0.00019178,2]
[423284626,1780026642000,-151.0,0.00019178,2]
[423284629,1780026642000,-151.0,0.00019178,2]
[423284631,1780026642000,-151.0,0.00019178,2]
[423284630,1780026642000,-151.0,0.00019178,2]
[423284632,1780026642000,-151.0,0.00019178,2]
[423284633,1780026642000,-151.0,0.00019178,2]
[423284628,1780026642000,-151.0,0.00019178,2]
[423284634,1780026642000,-151.0,0.00019178,2]
[423284635,1780026642000,-151.0,0.00019178,2]
[423284636,1780026642000,-151.0,0.00019178,2]
[423284643,1780026642000,-151.0,0.00019178,2]
[423284644,1780026642000,-151.0,0.00019178,2]
[423284645,1780026642000,-151.0,0.00019178,2]
[423284642,1780026642000,-151.0,0.00019178,2]
[423284670,1780026642000,-151.0,0.00019178,2]
[423284684,1780026642000,-151.0,0.00019178,2]
[423284674,1780026642000,-151.0,0.00019178,2]
[423284706,1780026642000,-151.0,0.00019178,2]
[423284708,1780026642000,-151.0,0.00019178,2]
[423284707,1780026642000,-151.0,0.00019178,2]
[423284705,1780026642000,-151.0,0.00019178,2]
[423284712,1780026642000,-1685.55,0.000192,2]
[423284723,1780026642000,-1359.50701632,0.000197,2]
[423284722,1780026642000,-1370.28437633,0.000197,2]
[423284714,1780026642000,-1370.28437633,0.000193,2]
[423284718,1780026642000,-189.77072,0.00019452,2]
[423284711,1780026642000,-151.0,0.00019178,2]
[423284713,1780026642000,-1576.93,0.000192,2]
[423284715,1780026642000,-1359.50701632,0.000193,2]
[423284717,1780026642000,-255.895535,0.00019452,2]
[423284720,1780026642000,-1359.50701632,0.000195,2]
[423284716,1780026642000,-2939.18,0.000194,2]
[423284721,1780026642000,-500.0,0.00019586,2]
[423284719,1780026642000,-1370.28437633,0.000195,2]
[423284724,1780026642000,-200.0,0.000197,2]
[423284726,1780026642000,-356.24,0.00019907,2]
[423284727,1780026642000,-300.0,0.00019967,2]
[423284729,1780026642000,-300.0,0.00019999,2]
[423284672,1780026642000,-151.0,0.00019178,2]
[423284728,1780026642000,-9293.95,0.00019968,2]
[423284731,1780026642000,-300.0,0.00019999,2]
[423284730,1780026642000,-300.0,0.00019999,2]
[423284733,1780026642000,-300.0,0.00019999,2]
[423284732,1780026642000,-666.0,0.00019999,2]
[423284709,1780026642000,-151.0,0.00019178,2]
[423284704,1780026642000,-151.0,0.00019178,2]
[423284725,1780026642000,-177.744918,0.00019904,2]
[423284703,1780026642000,-151.0,0.00019178,2]
[423284700,1780026642000,-151.0,0.00019178,2]
[423284673,1780026642000,-151.0,0.00019178,2]
[423284675,1780026642000,-151.0,0.00019178,2]
[423284681,1780026642000,-151.0,0.00019178,2]
[423284678,1780026642000,-151.0,0.00019178,2]
[423284677,1780026642000,-151.0,0.00019178,2]
[423284676,1780026642000,-151.0,0.00019178,2]
[423284683,1780026642000,-151.0,0.00019178,2]
[423284680,1780026642000,-151.0,0.00019178,2]
[423284679,1780026642000,-151.0,0.00019178,2]
[423284686,1780026642000,-151.0,0.00019178,2]
[423284698,1780026642000,-151.0,0.00019178,2]
[423284696,1780026642000,-151.0,0.00019178,2]
[423284697,1780026642000,-151.0,0.00019178,2]
[423284682,1780026642000,-151.0,0.00019178,2]
[423284688,1780026642000,-151.0,0.00019178,2]
[423284685,1780026642000,-151.0,0.00019178,2]
[423284710,1780026642000,-151.0,0.00019178,2]
[423284701,1780026642000,-151.0,0.00019178,2]
[423284699,1780026642000,-151.0,0.00019178,2]
[423284694,1780026642000,-151.0,0.00019178,2]
[423284692,1780026642000,-151.0,0.00019178,2]
[423284702,1780026642000,-151.0,0.00019178,2]
[423284695,1780026642000,-151.0,0.00019178,2]
[423284691,1780026642000,-151.0,0.00019178,2]
[423284693,1780026642000,-151.0,0.00019178,2]
[423284689,1780026642000,-151.0,0.00019178,2]
[423284687,1780026642000,-151.0,0.00019178,2]
[423284690,1780026642000,-151.0,0.00019178,2]
[423284765,1780026643000,-5630.0,0.0002,2]
[423284778,1780026643000,-965.12,0.00020159,2]
[423284767,1780026643000,-727.0,0.0002,2]
[423284766,1780026643000,-2729.0,0.0002,2]
[423284769,1780026643000,-10488.45,0.0002,2]
[423284770,1780026643000,-200.0,0.0002,10]
[423284777,1780026643000,-152.0,0.00020105,3]
[423284771,1780026643000,-150.0,0.0002,20]
[423284768,1780026643000,-4840.0,0.0002,2]
[423284772,1780026643000,-6959.0,0.0002,2]
[423284779,1780026643000,-500.0,0.00020174,2]
[423284776,1780026643000,-300.0,0.000201,10]
[423284774,1780026643000,-2007.0,0.0002,2]
[423284775,1780026643000,-568.53506614,0.00020008,2]
[423284782,1780026643000,-2129.0,0.00020312,2]
[423284781,1780026643000,-2000.0,0.00020235,2]
[423284784,1780026643000,-8056.7,0.00020381,2]
[423284783,1780026643000,-165.58,0.00020334,2]
[423284790,1780026643000,-300.0,0.00020547,2]
[423284788,1780026643000,-300.0,0.00020547,2]
[423284764,1780026643000,-1220.0,0.0002,2]
[423284773,1780026643000,-1566.0,0.0002,2]
[423284758,1780026643000,-3624.0,0.0002,2]
[423284742,1780026643000,-1176.0,0.0002,2]
[423284755,1780026643000,-400.0,0.0002,2]
[423284735,1780026643000,-300.0,0.00019999,2]
[423284736,1780026643000,-500.0,0.00019999,2]
[423284738,1780026643000,-5284.78473627,0.0002,2]
[423284737,1780026643000,-300.59065511,0.0002,2]
[423284739,1780026643000,-2992.47080596,0.0002,7]
[423284740,1780026643000,-538.79370888,0.0002,7]
[423284748,1780026643000,-200.0,0.0002,2]
[423284741,1780026643000,-1907.0,0.0002,2]
[423284743,1780026643000,-150.37,0.0002,2]
[423284744,1780026643000,-734.397117,0.0002,2]
[423284747,1780026643000,-1313.10154104,0.0002,2]
[423284745,1780026643000,-432.10594009,0.0002,2]
[423284746,1780026643000,-214.84700566,0.0002,2]
[423284749,1780026643000,-1059.93391054,0.0002,2]
[423284751,1780026643000,-2647.83579359,0.0002,2]
[423284761,1780026643000,-3749.0,0.0002,2]
[423284762,1780026643000,-3000.0,0.0002,10]
[423284760,1780026643000,-1131.0,0.0002,2]
[423284759,1780026643000,-1198.0,0.0002,2]
[423284757,1780026643000,-3978.0,0.0002,2]
[423284763,1780026643000,-1371.0,0.0002,2]
[423284753,1780026643000,-1679.69,0.0002,30]
[423284787,1780026643000,-300.0,0.00020547,2]
[423284785,1780026643000,-170.81500486,0.000205,2]
[423284780,1780026643000,-634.88,0.00020218,2]
[423284812,1780026643000,-666.0,0.00020999,2]
[423284817,1780026643000,-6111.0,0.00021,2]
[423284819,1780026643000,-3978.0,0.00021,2]
[423284818,1780026643000,-7331.49838497,0.00021,2]
[423284820,1780026643000,-3624.0,0.00021,2]
[423284823,1780026643000,-3749.0,0.00021,2]
[423284827,1780026643000,-2729.0,0.00021,2]
[423284824,1780026643000,-1371.0,0.00021,2]
[423284821,1780026643000,-1198.0,0.00021,2]
[423284822,1780026643000,-1131.0,0.00021,2]
[423284811,1780026643000,-300.0,0.00020999,2]
[423284825,1780026643000,-1220.0,0.00021,2]
[423284831,1780026643000,-2007.0,0.00021,2]
[423284834,1780026643000,-300.0,0.00021136,2]
[423284832,1780026643000,-427.71,0.00021099,2]
[423284833,1780026643000,-2939.18,0.000211,2]
[423284835,1780026643000,-300.0,0.00021136,2]
[423284830,1780026643000,-1566.0,0.00021,2]
[423284828,1780026643000,-727.0,0.00021,2]
[423284837,1780026643000,-151.0,0.00021137,2]
[423284836,1780026643000,-300.0,0.00021136,2]
[423284789,1780026643000,-300.0,0.00020547,2]
[423284826,1780026643000,-5630.0,0.00021,2]
[423284814,1780026643000,-1234.43275857,0.00021,7]
[423284829,1780026643000,-150.0,0.00021,2]
[423284809,1780026643000,-666.0,0.00020999,2]
[423284791,1780026643000,-666.0,0.00020547,2]
[423284815,1780026643000,-160.0,0.00021,7]
[423284786,1780026643000,-300.0,0.00020547,2]
[423284793,1780026643000,-279.96,0.00020548,20]
[423284804,1780026643000,-300.0,0.00020999,2]
[423284803,1780026643000,-427.71,0.0002089,2]
[423284798,1780026643000,-150.25518464,0.0002058,2]
[423284795,1780026643000,-150.0,0.0002058,2]
[423284792,1780026643000,-300.0,0.00020547,2]
[423284794,1780026643000,-17965.7,0.00020548,2]
[423284799,1780026643000,-500.0,0.00020628,2]
[423284796,1780026643000,-150.0,0.0002058,2]
[423284813,1780026643000,-300.0,0.00020999,2]
[423284816,1780026643000,-15000.0,0.00021,2]
[423284801,1780026643000,-500.0,0.00020779,2]
[423284810,1780026643000,-300.0,0.00020999,2]
[423284807,1780026643000,-300.0,0.00020999,2]
[423284808,1780026643000,-300.0,0.00020999,2]
[423284806,1780026643000,-300.0,0.00020999,2]
[423284805,1780026643000,-300.0,0.00020999,2]
[423284800,1780026643000,-152.0,0.00020682,4]
[423284802,1780026643000,-163.35006071,0.00020843,2]
[423284797,1780026643000,-150.0,0.0002058,2]
[423284876,1780026644000,-1000.0,0.00021137,2]
[423284891,1780026644000,-256.59241585,0.00021137,2]
[423284881,1780026644000,-152.0,0.00021137,2]
[423284878,1780026644000,-209.40437684,0.00021137,2]
[423284880,1780026644000,-693.39197629,0.00021137,2]
[423284872,1780026644000,-721.12765534,0.00021137,2]
[423284877,1780026644000,-151.0,0.00021137,2]
[423284874,1780026644000,-151.0,0.00021137,2]
[423284868,1780026644000,-151.0,0.00021137,2]
[423284873,1780026644000,-230.09519341,0.00021137,2]
[423284875,1780026644000,-500.0,0.00021137,2]
[423284882,1780026644000,-1000.0,0.00021137,2]
[423284879,1780026644000,-238.60871557,0.00021137,2]
[423284883,1780026644000,-500.0,0.00021137,2]
[423284892,1780026644000,-151.0,0.00021137,2]
[423284889,1780026644000,-564.92594168,0.00021137,2]
[423284890,1780026644000,-500.0,0.00021137,2]
[423284885,1780026644000,-151.0,0.00021137,2]
[423284884,1780026644000,-247.43723804,0.00021137,2]
[423284887,1780026644000,-1000.0,0.00021137,2]
[423284888,1780026644000,-152.0,0.00021137,2]
[423284893,1780026644000,-151.0,0.00021137,2]
[423284903,1780026644000,-286.14099624,0.00021137,2]
[423284894,1780026644000,-266.08633524,0.00021137,2]
[423284895,1780026644000,-152.0,0.00021137,2]
[423284896,1780026644000,-500.0,0.00021137,2]
[423284897,1780026644000,-151.0,0.00021137,2]
[423284870,1780026644000,-693.39197629,0.00021137,2]
[423284886,1780026644000,-151.0,0.00021137,2]
[423284869,1780026644000,-209.40437684,0.00021137,2]
[423284847,1780026644000,-151.0,0.00021137,2]
[423284871,1780026644000,-1000.0,0.00021137,2]
[423284898,1780026644000,-151.0,0.00021137,2]
[423284839,1780026644000,-151.0,0.00021137,2]
[423284840,1780026644000,-151.0,0.00021137,2]
[423284838,1780026644000,-151.0,0.00021137,2]
[423284845,1780026644000,-416.03518577,0.00021137,2]
[423284841,1780026644000,-151.0,0.00021137,2]
[423284850,1780026644000,-174.61919141,0.00021137,2]
[423284844,1780026644000,-151.0,0.00021137,2]
[423284843,1780026644000,-151.0,0.00021137,2]
[423284846,1780026644000,-200.0,0.00021137,2]
[423284848,1780026644000,-279.9045709,0.00021137,2]
[423284851,1780026644000,-151.0,0.00021137,2]
[423284842,1780026644000,-151.0,0.00021137,2]
[423284849,1780026644000,-209.40437684,0.00021137,2]
[423284854,1780026644000,-151.0,0.00021137,2]
[423284852,1780026644000,-743.50770149,0.00021137,2]
[423284853,1780026644000,-209.40437684,0.00021137,2]
[423284856,1780026644000,-578.20924308,0.00021137,2]
[423284858,1780026644000,-693.39197629,0.00021137,2]
[423284866,1780026644000,-151.0,0.00021137,2]
[423284855,1780026644000,-151.0,0.00021137,2]
[423284859,1780026644000,-151.0,0.00021137,2]
[423284857,1780026644000,-151.0,0.00021137,2]
[423284860,1780026644000,-200.0,0.00021137,2]
[423284865,1780026644000,-200.0,0.00021137,2]
[423284862,1780026644000,-151.0,0.00021137,2]
[423284861,1780026644000,-151.0,0.00021137,2]
[423284864,1780026644000,-2080.17592889,0.00021137,2]
[423284863,1780026644000,-1428.38747117,0.00021137,2]
[423284867,1780026644000,-221.88543241,0.00021137,2]
[423284902,1780026644000,-151.0,0.00021137,2]
[423284899,1780026644000,-275.93152964,0.00021137,2]
[423284900,1780026644000,-152.0,0.00021137,2]
[423284934,1780026644000,-152.0,0.00021259,5]
[423284933,1780026644000,-745.65223615,0.00021247,2]
[423284936,1780026644000,-151.0,0.00021302,2]
[423284935,1780026644000,-773.24136889,0.00021302,2]
[423284937,1780026644000,-773.24136889,0.00021302,2]
[423284938,1780026644000,-427.71,0.00021308,2]
[423284939,1780026644000,-801.85129954,0.00021357,2]
[423284943,1780026644000,-300.0,0.00021378,2]
[423284947,1780026644000,-300.0,0.00021383,2]
[423284945,1780026644000,-666.0,0.00021378,2]
[423284946,1780026644000,-310.82954872,0.00021383,2]
[423284954,1780026644000,-1225.0,0.00021384,2]
[423284944,1780026644000,-300.0,0.00021378,2]
[423284940,1780026644000,-151.0,0.00021357,2]
[423284951,1780026644000,-3549.0,0.00021384,2]
[423284948,1780026644000,-300.0,0.00021383,2]
[423284949,1780026644000,-280.44796258,0.00021383,2]
[423284953,1780026644000,-1272.0,0.00021384,2]
[423284956,1780026644000,-932.0,0.00021384,2]
[423284958,1780026644000,-500.0,0.00021402,2]
[423284961,1780026644000,-831.51979762,0.00021412,2]
[423284960,1780026644000,-831.51979762,0.00021412,2]
[423284963,1780026644000,-151.0,0.00021467,2]
[423284957,1780026644000,-6066.0,0.00021384,2]
[423284955,1780026644000,-525.0,0.00021384,2]
[423284959,1780026644000,-151.0,0.00021412,2]
[423284964,1780026644000,-862.28603014,0.00021467,2]
[423284962,1780026644000,-210.00716001,0.00021467,2]
[423284952,1780026644000,-928.0,0.00021384,2]
[423284932,1780026644000,-745.65223615,0.00021247,2]